Workbook

Sheet Size solar panel
F11: 1 | G11: 1
N15: ^Veuillez saisir la quantité d’auxiliaires Centurion utilisés et le nombre d’utilisations par jour
F18: 1 | G18: 1
F19: 1 | G19: 1
F20: 1 | G20: 1
F21: 1 | G21: 1
F22: 1 | G22: 1
F23: 1 | G23: 1
F24: 1 | G24: 1
I30: Notes:
B31: Puissance NETTE Requise: | G31: 0 | H31: Wh
B32: Détarage dû à la poussière, etc: | F32: 0.2 | G32: 0 | H32: Wh
B33: Fournir une surcharge pour charger complètement la batterie: | F33: 0.15 | G33: 0 | H33: Wh
B34: Insolation Géographique (heures/jour): | F34: 4.75 | G34: 0 | H34: W
B40: Autonomie: | F40: 1 | G40: Jours
B41: DoD Autorisée pour la batterie utilisée: | F41: 0.2 | G41: Cycle profond de préférence
B43: Capacité Totale (Ah) Nécessaire : | H43: Ah

Sheet DATA
B3: VOLTS | C3: COURANT | E3: TEMPS | F3: ÉNERGIE | H3: WATTS
A4: MOTEUR | B4: TENSION DU SYSTÈME | C4: COURANT DE REPOS (mA) | D4: COURANT ACTIF (A) | E4: TEMPS/FONCTIONNEMENT - Secondes Actives (OUVRIR ET FERMER, etc.) | F4: Ah de repos consommé (par 24h) | G4: Ah actif consommé (par cycle) | H4: W de repos consommé (par 24h) | I4: W actif consommé (par cycle) | K4: AUTOMATE | L4: FACTEUR
A5: Moteur D2 Turbo pour Portails Coulissants | B5: 12 | C5: 95 | D5: 8 | E5: 20 | F5: =IF(C5>0,C5/1000*24,"") -> 2.28 | G5: =IF(A5<>"",IF(D5>0,D5*E5/(60*60),C5),"") -> 0.04444444444 | H5: =IF(C5>0,F5*B5,"") -> 27.36 | I5: =IF(D5>0,G5*H5,"") -> 1.216 | K5: Automate - D2 Turbo | L5: 1
A6: Moteur D5-EVO pour Portails Coulissants | B6: 12 | C6: 75 | D6: 8 | E6: 30 | F6: =IF(C6>0,C6/1000*24,"") -> 1.8 | G6: =IF(A6<>"",IF(D6>0,D6*E6/(60*60),C6),"") -> 0.06666666667 | H6: =IF(C6>0,F6*B6,"") -> 21.6 | I6: =IF(D6>0,G6*H6,"") -> 1.44 | K6: Automate - EVO | L6: 1
A7: Moteur D10 pour Portails Coulissants (système de 24V CC) | B7: 24 | C7: 80 | D7: 6 | E7: 30 | F7: 1.92 | G7: 0.05 | H7: 46.08 | I7: 2.304 | K7: Automate - D10 | L7: 0.65
A8: Moteur D10 Turbo pour Portails Coulissants (système de 24V CC) | B8: 24 | C8: 80 | D8: 10 | E8: 20 | F8: 1.92 | G8: 0.05555555556 | H8: 46.08 | I8: 2.56 | K8: Automate - D10 | L8: 0.65
A9: Moteur A10 pour Portails Coulissants (utilisant un convertisseur CC) | B9: 12 | C9: 16 | D9: 20 | E9: 30 | F9: 0.384 | G9: 0.1666666667 | H9: 4.608 | I9: 0.768 | K9: CP201 | L9: 1
A10: Moteur R3 pour Portails Battants Simples | B10: 12 | C10: 16 | D10: 4 | E10: 35 | F10: 0.384 | G10: 0.03888888889 | H10: 4.608 | I10: 0.1792 | K10: CP75 | L10: 1
A11: Moteur R3 pour Portails Battants Doubles | B11: 12 | C11: 16 | D11: 8 | E11: 35 | F11: 0.384 | G11: 0.07777777778 | H11: 4.608 | I11: 0.3584 | K11: CP75 | L11: 1
A12: Moteur R5 pour Portails Battants Simples | B12: 12 | C12: 16 | D12: 5 | E12: 40 | F12: 0.384 | G12: 0.05555555556 | H12: 4.608 | I12: 0.256 | K12: CP75 | L12: 1
A13: Moteur R5 pour Portails Battants Doubles | B13: 12 | C13: 16 | D13: 10 | E13: 40 | F13: 0.384 | G13: 0.1111111111 | H13: 4.608 | I13: 0.512 | K13: CP75 | L13: 1
A14: Moteur MAXI-MATE pour Portails Battants Simples | B14: 12 | C14: 25 | D14: 5 | E14: 40 | F14: 0.6 | G14: 0.05555555556 | H14: 7.2 | I14: 0.4 | K14: CP77 | L14: 1
A15: Moteur MAXI-MATE pour Portails Battants Doubles | B15: 12 | C15: 25 | D15: 10 | E15: 40 | F15: 0.6 | G15: 0.1111111111 | H15: 7.2 | I15: 0.8 | K15: CP77 | L15: 1
A16: Moteur VECTOR pour Poratils Battants Simples (V400) | B16: 12 | C16: 48 | D16: 2 | E16: 28 | F16: 1.152 | G16: 0.01555555556 | H16: 13.824 | I16: 0.21504 | K16: Automate - SÉRIE V | L16: 1
A17: Moteur VECTOR pour Poratils Battants Simples (V500) | B17: 12 | C17: 48 | D17: 2 | E17: 35 | F17: 1.152 | G17: 0.01944444444 | H17: 13.824 | I17: 0.2688 | K17: Automate - SÉRIE V | L17: 1
A18: Moteur VECTOR pour Poratils Battants Doubles (V400) | B18: 12 | C18: 48 | D18: 4 | E18: 28 | F18: 1.152 | G18: 0.03111111111 | H18: 13.824 | I18: 0.43008 | K18: Automate - SÉRIE V | L18: 1
A19: Moteur VECTOR pour Poratils Battants Doubles (V500) | B19: 12 | C19: 48 | D19: 4 | E19: 35 | F19: 1.152 | G19: 0.03888888889 | H19: 13.824 | I19: 0.5376 | K19: Automate - SÉRIE V | L19: 1
A20: Moteur VANTAGE pour Portails Battants Simples (VT400) | B20: 12 | C20: 73 | D20: 2 | E20: 28 | F20: 1.752 | G20: 0.01555555556 | H20: 21.024 | I20: 0.32704 | K20: Automate - SÉRIE V | L20: 1
A21: Moteur VANTAGE pour Portails Battants Simples (VT500) | B21: 12 | C21: 48 | D21: 2 | E21: 35 | F21: 1.152 | G21: 0.01944444444 | H21: 13.824 | I21: 0.2688 | K21: Automate - SÉRIE V | L21: 1
A22: Moteur VANTAGE pour Portails Battants Doubles (VT400) | B22: 12 | C22: 48 | D22: 4 | E22: 28 | F22: 1.152 | G22: 0.03111111111 | H22: 13.824 | I22: 0.43008 | K22: Automate - SÉRIE V | L22: 1
A23: Moteur VANTAGE pour Portails Battants Doubles (VT500) | B23: 12 | C23: 48 | D23: 4 | E23: 35 | F23: 1.152 | G23: 0.03888888889 | H23: 13.824 | I23: 0.5376 | K23: Automate - SÉRIE V | L23: 1
A24: Moteur VERT-X pour Portails Battants Simples (VX300) | B24: 12 | C24: 48 | D24: 2 | E24: 25 | F24: 1.152 | G24: 0.01388888889 | H24: 13.824 | I24: 0.192 | K24: Automate - SÉRIE V | L24: 1
A25: Moteur VERT-X pour Portails Battants Doubles (VX300) | B25: 12 | C25: 48 | D25: 4 | E25: 32 | F25: 1.152 | G25: 0.03555555556 | H25: 13.824 | I25: 0.49152 | K25: Automate - SÉRIE V | L25: 1
A26: Barrière SECTOR (3M) | B26: 12 | C26: 50 | D26: 2 | E26: 2.5 | F26: 1.2 | G26: 0.001388888889 | H26: 14.4 | I26: 0.02 | K26: Automate - SECTOR | L26: 1
A27: Barrière SECTOR (4.5M or 6.0M) | B27: 12 | C27: 50 | D27: 2 | E27: 6 | F27: 1.2 | G27: 0.003333333333 | H27: 14.4 | I27: 0.048 | K27: Automate - SECTOR | L27: 1
A28: Moteur D5-EVO pour Portails Coulissants avec Extenseur d'Impulsions | B28: 12 | C28: 75 | D28: 8.1 | E28: 30 | F28: 1.8 | G28: 0.0675 | H28: 21.6 | I28: 1.458 | K28: Automate - EVO | L28: 1
A29: Moteur D5 Smart pour Portails Coulissants (système de 24V CC) | B29: 24 | C29: 60 | D29: 8 | E29: 25 | F29: 1.44 | G29: 0.05555555556 | H29: 34.56 | I29: 1.92 | K29: Automate - DX | L29: 1 | N29: Portail de 5 mètres à 32m/min, 2.5 sec de montée et descente
A30: Moteur D10 Smart pour Portails Coulissants (système de 24 VCC) | B30: 24 | C30: 60 | D30: 9 | E30: 35 | F30: 1.44 | G30: 0.0875 | H30: 34.56 | I30: 3.024 | K30: Automate - DX | L30: 1 | N30: Portail de 6 mètres à 24m/min, 2.5 sec de montée et descente
A31: Moteur D10 Turbo Smart pour Portails Coulissants (système de 24 VCC) | B31: 24 | C31: 60 | D31: 10 | E31: 20 | F31: 1.44 | G31: 0.05555555556 | H31: 34.56 | I31: 1.92 | K31: Automate - DX | L31: 1 | N31: Portail de 6 mètres à 42m/min, 2.5 sec de montée et descente
A32: Moteur D20 Smart pour Portails Coulissants (système de 24V CC) | B32: 24 | C32: 60 | D32: 10 | E32: 40 | F32: 1.44 | G32: 0.1111111111 | H32: 34.56 | I32: 3.84 | K32: Automate- DX | L32: 1 | N32: Portail de 6 mètres à 18m/min, 2.5 sec de montée et descente
A33: Moteur R6 pour Portails Battants Simples | B33: 12 | C33: 25 | D33: 4 | E33: 30 | F33: 0.6 | G33: 0.03333333333 | H33: 7.2 | I33: 0.24 | K33: CP77 | L33: 1
A34: Moteur R6 pour Portails Battants Doubles | B34: 12 | C34: 25 | D34: 8 | E34: 30 | F34: 0.6 | G34: 0.06666666667 | H34: 7.2 | I34: 0.48 | K34: CP77 | L34: 1
B41: VOLTS | C41: COURANT | E41: TEMPS | F41: ÉNERGIE | H41: WATTS
A42: ACCESSOIRES | B42: =+B4 -> TENSION DU SYSTÈME | C42: =+C4 -> COURANT DE REPOS (mA) | D42: COURANT ACTIF (A) | E42: TEMPS/FONCTIONNEMENT - Secondes Actives (OUVRIR ET FERMER, etc.) | F42: Ah de repos consommé (par 24h) | G42: Ah actif consommé (par cycle) | H42: W de repos consommé (par 24h) | I42: W actif consommé (par cycle)
A43: Régulateur solaire de 20A (ESOLRPG020V1) | B43: 12 | C43: 6 | F43: =IF(C43>0,C43/1000*24,"") -> 0.144 | G43: =IF(A43<>"",IF(D43>0,D43*E43/(60*60),C43),"") -> 6 | H43: =IF(C43>0,F43*B43,"") -> 1.728 | I43: =IF(D43>0,G43*H43,"") -> 
A44: Faisceaux infrarouges I5 - Tx & Rx | B44: 12 | C44: 67 | F44: =IF(C44>0,C44/1000*24,"") -> 1.608 | G44: =IF(A44<>"",IF(D44>0,D44*E44/(60*60),C44),"") -> 67 | H44: =IF(C44>0,F44*B44,"") -> 19.296 | I44: =IF(D44>0,G44*H44,"") -> 
A45: Faisceaux de Sécurité PHOTON | B45: 12 | C45: 30 | F45: 0.72 | G45: 30 | H45: 8.64
A46: Récepteur CENTURION avec 1 canal | B46: 12 | C46: 11 | F46: 0.264 | G46: 11 | H46: 3.168
A47: Récepteur CENTURION avec 4 canaux | B47: 12 | C47: 25 | D47: 0.18 | E47: 0.5 | F47: 0.6 | G47: 2.5e-05 | H47: 7.2 | I47: 0.00018
A48: Récepteur Supa Helix | B48: 12 | C48: 100 | D48: 0.27 | E48: 0.5 | F48: 2.4 | G48: 3.75e-05 | H48: 28.8 | I48: 0.00108
A49: Le G-Switch 22 | B49: 12 | C49: 80 | F49: 1.92 | G49: 80 | H49: 23.04
A50: MYGSM 88 | B50: 12 | C50: 120 | F50: 2.88 | G50: 120 | H50: 34.56
A51: Panneau d'Entrée POLOphone | B51: 12 | C51: 35 | F51: 0.84 | G51: 35 | H51: 10.08
A52: Combiné POLOphone | B52: 12 | C52: 25 | F52: 0.6 | G52: 25 | H52: 7.2
A53: G-Speak Classic (Plus) | B53: 12 | C53: 30 | F53: 0.72 | G53: 30 | H53: 8.64
A54: Intercom Mkii GSM | B54: 12 | C54: 350 | D54: 0.15 | F54: 8.4 | G54: 0 | H54: 100.8 | I54: 0
A55: SMARTGUARD (Câblé) | B55: 12 | C55: 32 | D55: 0.18 | F55: 0.768 | G55: 0 | H55: 9.216 | I55: 0
A56: Lecteur SOLO | B56: 12 | C56: 50 | D56: 0.18 | F56: 1.2 | G56: 0 | H56: 14.4 | I56: 0
A57: Automate Lattice | B57: 12 | C57: 50 | D57: 0.18 | F57: 1.2 | G57: 0 | H57: 14.4 | I57: 0
A58: Lecteur Esclave Lattice | B58: 12 | C58: 50 | D58: 0.18 | F58: 1.2 | G58: 0 | H58: 14.4 | I58: 0
A59: Détecteur de Boucle Autonome FLUX | B59: 12 | C59: 50 | F59: 1.2 | G59: 50 | H59: 14.4
A60: Détecteur de Boucle Enfichable FLUX 11 | B60: 12 | C60: 50 | F60: 1.2 | G60: 50 | H60: 14.4
A61: Convertisseur CC-CC (utilisé avec 10A pour la batterie de secours) | B61: 12 | C61: 150 | F61: 3.6 | G61: 150 | H61: 43.2
A62: Bord Sensible | B62: 12 | C62: 30 | F62: 0.72 | G62: 30 | H62: 8.64
A63: Extenseur d'Impulsions | B63: 12 | C63: 7 | F63: 0.168 | G63: 7 | H63: 2.016
A64: G-ULTRA 2G | B64: 12 | C64: 33 | D64: 0.35 | E64: 15 | F64: 0.792 | G64: 0.001458333333 | H64: 9.504 | I64: 0.01386
A65: G-SPEAK ULTRA 2G | B65: 12 | C65: 130 | D65: 0.35 | E65: 15 | F65: 3.12 | G65: 0.001458333333 | H65: 37.44 | I65: 0.0546
A66: G-ULTRA 3G PENTA BAND | B66: 12 | C66: 130 | D66: 0.35 | E66: 15 | F66: 3.12 | G66: 0.001458333333 | H66: 37.44 | I66: 0.0546
A67: WiZo | B67: 12 | C67: 30 | F67: 0.72 | G67: 30 | H67: 8.64
A68: Feux de Circulation | B68: 12 | C68: 20 | F68: =IF(C68>0,C68/1000*24,"") -> 0.48 | G68: 20 | H68: =IF(C68>0,F68*B68,"") -> 5.76 | I68: =IF(D68>0,G68*H68,"") -> 
A69: Automate des CLAWS | B69: 12 | C69: 70 | F69: 1.68 | G69: 70 | H69: 20.16
A70: Pas de Bouton-Poussoir Tactile | B70: 12 | C70: 30 | F70: 0.72 | G70: 30 | H70: 8.64
A79: Tension du Système
A80: 12
A81: 24

Sheet Solar Insolation Map (World)
A1: Carte d’Ensoleillement - Monde
A25: FRANCE
A26: VILLE | B26: Heures d’Ensoleillement Effectives
A27: RENNE | B27: 1.24
A28: NANTES | B28: 1.46
A29: LE HAVRE | B29: 1.18
A30: BORDEAUX | B30: 1.81
A31: TOULOUSE | B31: 2.53
A32: MARSEILLE | B32: 2.97
A33: NICE | B33: 2.58
A34: MONTPELLIER | B34: 1.65
A35: LYON | B35: 1.56
A36: REIMS | B36: 0.95
A37: PARIS | B37: 1.11

Sheet Solar Insolation Map (Africa)
A1: Carte d’Ensoleillement - Afrique
G3: Countries
G4: English | H4: French
G5: Algeria | H5: Algérie
G6: Angola | H6: Angola
G7: Benin | H7: Bénin
G8: Botswana | H8: Botswana
G9: Burkina Faso | H9: Burkina Faso
G10: Burundi | H10: Burundi
G11: Cabo Verde | H11: Cap-Vert
G12: Cameroon | H12: Cameroun
G13: Central African Republic | H13: République Centrafricaine
G14: Chad | H14: Tchad
G15: Comoros | H15: Comores
G16: Congo | H16: Congo
G17: Côte d’Ivoire | H17: Côte d’Ivoire
G18: Cyprus | H18: Chypre
G19: Democratic Republic of the Congo | H19: République Démocratique du Congo
G20: Djibouti | H20: Djibouti
G21: Egypt | H21: Égypte
G22: Equatorial Guinea | H22: Guinée Équatoriale
G23: Eritrea | H23: Érythrée
G24: Ethiopia | H24: Éthiopie
G25: Gabon | H25: Gabon
G26: Gambia | H26: Gambie
G27: Ghana | H27: Ghana
G28: Guinea | H28: Guinée
G29: Guinea-Bissau | H29: Guinée-Bissau
G30: Iran | H30: Iran
G31: Iraq | H31: Irak
G32: Israel | H32: Israël
G33: Jordan | H33: Jordanie
G34: Kenya | H34: Kenya
G35: Kuwait | H35: Koweït
G36: Lebanon | H36: Liban
G37: Lesotho | H37: Lesotho
G38: Liberia | H38: Libéria
G39: Libya | H39: Libye
G40: Madagascar | H40: Madagascar
G41: Malawi | H41: Malawi
G42: Mali | H42: Mali
G43: Malta | H43: Malte
G44: Mauritania | H44: Mauritanie
G45: Mauritius | H45: Maurice
G46: Morocco | H46: Maroc
G47: Mozambique | H47: Mozambique
G48: Namibia | H48: Namibie
G49: Niger | H49: Niger
G50: Nigeria | H50: Nigéria
G51: Oman | H51: Oman
G52: PNA | H52: ANP
G53: Qatar | H53: Qatar
G54: Rwanda | H54: Rwanda
G55: Sao Tome and Principe | H55: Sao Tomé-et-Principe
G56: Saudi Arabia | H56: Arabie Saoudite
G57: Senegal | H57: Sénégal
G58: Seychelles | H58: Seychelles
G59: Sierra Leone | H59: Sierra Leone
G60: Somalia | H60: Somalie
G61: South Africa | H61: Afrique du Sud
G62: Sudan | H62: Soudan
G63: Syria | H63: Syrie
G64: Tanzania | H64: Tanzanie
G65: Togo | H65: Togo
G66: Tunisia | H66: Tunisie
G67: Uganda | H67: Ouganda
G68: United Arab Emirates | H68: Émirats Arabes Unis
G69: West Sahara | H69: Sahara Occidental
G70: Yemen | H70: Yémen
G71: Zambia | H71: Zambie
G72: Zimbabwe | H72: Zimbabwe

Sheet 1 (hidden)
A1: solar
